fUST/lending_fUST_20240125
["ID","MTS","AMOUNT","RATE_DAILY","PERIOD"]
[312701621,1706165439186,-850.73963902,0.00022241,2]
[312701622,1706165439195,-154.86062544,0.00022241,2]
[312701623,1706165439204,-679.03304923,0.00022242,2]
[312701624,1706165439214,-295.01713766,0.00022243,2]
[312701625,1706165439223,-360.91917073,0.00022243,2]
[312701626,1706165439232,-154.86062544,0.00022244,4]
[312701627,1706165439241,-2762.44239506,0.00022244,2]
[312701628,1706165439251,-181.05736136,0.00022244,2]
[312701629,1706165439260,-243.4528969,0.00022252,2]
[312701630,1706165439269,-154.92253873,0.0002312,2]
[312701631,1706165439279,-179.6207181,0.00023505,2]
[312701632,1706165439288,-2074.94658461,0.00023603,2]
[312701633,1706165439297,-470.87385711,0.00023603,2]
[312701634,1706165439307,-155.359626,0.00023604,2]
[312701635,1706165439316,-24900.0,0.00023605,2]
[312701636,1706165439325,-275.7227885,0.00024645,2]
[312701637,1706165439334,-380.0,0.00024658,2]
[312701638,1706165439344,-498.66582765,0.0002496,5]
[312701639,1706165439353,-4725.91421399,0.00025,2]
[312701640,1706165439361,-200.0,0.00025418,7]
[312701641,1706165439371,-165.471319,0.00025621,2]
[312701642,1706165439379,-9786.81,0.00025681,3]
[312701643,1706165439388,-8155.68,0.00025681,3]
[312701644,1706165439398,-937.28901272,0.0002569,2]
[312701645,1706165439408,-530.51792333,0.0002569,2]
[312701646,1706165439417,-52429.74127432,0.00025691,2]
[312701647,1706165439426,-8227.08625354,0.00025692,2]
[312701648,1706165439435,-155.82215067,0.00025733,2]
[312701649,1706165439444,-290.53836744,0.00027,2]
[312701650,1706165439453,-280.0,0.00027959,15]
[312701651,1706165439463,-13226.17446126,0.00028591,2]
[312701652,1706165439472,-170.0,0.000287,2]
[312701653,1706165439481,-60616.67087146,0.00028702,3]
[312701654,1706165439490,-18572.56641916,0.00028702,3]
[312701655,1706165439500,-2168.50339168,0.00028702,3]
[312701656,1706165439509,-92845.0035602,0.00028702,3]
[312701657,1706165439518,-500.0,0.00029999,2]
[312701658,1706165439528,-543.09257964,0.00029999,2]
[312701659,1706165439537,-500.0,0.00029999,2]
[312701660,1706165439546,-500.0,0.00029999,2]
[312701661,1706165439555,-577.97246029,0.00029999,2]
[312701662,1706165439564,-500.0,0.00029999,2]
[312701663,1706165439573,-211.38916615,0.00029999,2]
[312701664,1706165439582,-500.0,0.00029999,2]
[312701665,1706165439591,-183.96259586,0.00029999,2]
[312701666,1706165439601,-500.0,0.00029999,2]
[312701667,1706165439610,-359.77345468,0.00029999,2]
[312701668,1706165439619,-688.78830185,0.0003,4]
[312701669,1706165439719,-245.03812436,0.0003,4]
[312701670,1706165439730,-154.86062544,0.0003,4]
[312701671,1706165439739,-139264.62830083,0.0003,4]
[312701672,1706165439748,-157.894736,0.00030137,2]
[312701673,1706165439759,-391.0,0.00030755,15]
[312701674,1706165439769,-151.01757221,0.00031136,2]
[312701675,1706165439778,-228.50754628,0.00033,2]
[312701676,1706165439787,-382.0,0.00033831,15]
[312701677,1706165439796,-261.85924239,0.00035,4]
[312701678,1706165439805,-309.66775956,0.00039,4]
[312701679,1706165439815,-5000.0,0.00039446,7]
[312701680,1706165439827,-150.41546657,0.00039559,2]
[312701681,1706165439836,-150.0,0.00039788,2]
[312701682,1706165439845,-4041.39742033,0.0003999,4]
[312701683,1706165439856,-3954.91463466,0.00040364,2]
[312701684,1706165439866,-14015.87085813,0.00040469,5]
[312701686,1706165439875,-777.0,0.00040895,2]
[312701688,1706165439883,-500.0,0.00041095,2]
[312701689,1706165439893,-157.57723135,0.00041558,30]
[312701690,1706165439904,-157.57723135,0.00041621,30]
[312701691,1706165439914,-155.54233737,0.00042247,30]
[312701692,1706165439923,-157.57723135,0.00042316,30]
[312701693,1706165439933,-151.63703844,0.00042514,6]
[312701694,1706165439942,-6129.67718162,0.00042599,4]
[312701695,1706165439952,-429.66873294,0.00042599,4]
[312701696,1706165439961,-466.21113031,0.00042599,4]
[312701697,1706165439971,-785.40936716,0.00042599,4]
[312701698,1706165439980,-519.66047984,0.00042599,4]
[312701699,1706165439991,-157.57723135,0.00042801,30]
[312701700,1706165440001,-4578.0000002,0.00043,2]
[312701701,1706165440010,-440.0,0.00043,90]
[312701702,1706165440019,-440.0,0.00043014,90]
[312701703,1706165440028,-157.57723135,0.0004303,30]
[312701704,1706165440038,-156.35433622,0.00043105,30]
[312701705,1706165440047,-157.57723135,0.00043124,30]
[312701707,1706165440056,-151.0,0.0004341,21]
[312701708,1706165440065,-157.57723135,0.00043506,30]
[312701709,1706165440075,-151.0,0.00043704,21]
[312701710,1706165440085,-200.0,0.000438,4]
[312701711,1706165440095,-1587.46104404,0.00043803,4]
[312701712,1706165440104,-781.5559167,0.00044,2]
[312701713,1706165440113,-624.92756785,0.0004425,4]
[312701714,1706165440123,-156.35433622,0.00044279,30]
[312701715,1706165440131,-155.54233738,0.00044347,30]
[312701716,1706165440141,-2562.25694359,0.0004458,110]
[312701717,1706165440150,-3000.0,0.0004468,90]
[312701718,1706165440160,-1000.0,0.00044689,14]
[312701719,1706165440169,-974.83970767,0.0004469,2]
[312701720,1706165440178,-500.0,0.00044694,60]
[312701721,1706165440187,-159.67503241,0.00044694,60]
[312701722,1706165440196,-227.0821289,0.00044694,60]
[312701724,1706165440205,-569.17334607,0.00044694,60]
[312701726,1706165440214,-166.85042456,0.00044694,60]
[312701728,1706165440223,-174.75511811,0.00044695,3]
[312701730,1706165440232,-352572.8209141,0.00044695,14]
[312701733,1706165440256,-106890.24082993,0.00044695,14]
[312701735,1706165440267,-4617.42207112,0.00044695,14]
[312701740,1706165440297,-6636.56415585,0.00044695,14]
[312701742,1706165440309,-831.40325975,0.00044695,14]
[312701875,1706165445863,-404.91796637,0.00022238,2]
[312701876,1706165445874,-1630.45747976,0.00022238,2]
[312701877,1706165445884,-155.00001712,0.00022238,2]
[312701878,1706165445893,-181.05736136,0.00022238,2]
[312701879,1706165445902,-6796.4,0.00044685,3]
[312701880,1706165445912,-109358.33405668,0.00044695,14]
[312702310,1706166476299,200.0,0.00021999,7]
[312702333,1706166633781,-154.8915759,0.00018644,3]
[312702335,1706166633792,-181.05736136,0.00018645,2]
[312702337,1706166633801,-7525.17725655,0.00018645,2]
[312702338,1706166633811,-360.91917073,0.00018646,2]
[312702339,1706166633820,-265.58036127,0.00018646,2]
[312702341,1706166633829,-155.00001712,0.00018646,2]
[312702342,1706166633839,-2762.44239506,0.00018646,2]
[312702343,1706166633867,-295.01713766,0.00018647,2]
[312702344,1706166633876,-1046.49558076,0.00018647,2]
[312702346,1706166633885,-275.7227885,0.00018648,2]
[312702348,1706166633896,-10546.60603151,0.0001917,2]
[312702350,1706166633905,-165.471319,0.00019178,2]
[312702352,1706166633915,-679.03304923,0.0002,2]
[312702354,1706166633925,-1198.61763963,0.0002,2]
[312702356,1706166633935,-850.73963902,0.0002,2]
[312702359,1706166633944,-154.8915759,0.0002017,2]
[312702361,1706166633954,-24900.0,0.00020171,2]
[312702362,1706166633963,-243.4528969,0.00020973,2]
[312702364,1706166633972,-3643.2931828,0.00021318,5]
[312702367,1706166633983,-1356.7068172,0.00021318,5]
[312702369,1706166633992,-178.830629,0.00021918,2]
[312702370,1706166634001,-11004.5,0.00021969,3]
[312702372,1706166634010,-470.87385711,0.00021977,2]
[312702374,1706166634020,-2074.94658461,0.00021977,2]
[312702377,1706166634030,-1933.59375006,0.00021979,2]
[312702379,1706166634045,-391.04714582,0.00021979,2]
[312702380,1706166635365,684.5801402,0.00018426,2]
[312702420,1706166638564,-295.01713766,0.00018643,2]
[312702422,1706166638573,-1253.98067084,0.00021979,2]
[312702428,1706166638620,-48851.1197076,0.00021979,2]
[312702429,1706166638630,-2085.40450746,0.00021999,2]
[312702431,1706166638639,-178.830629,0.000232,2]
[312702433,1706166638648,-280.0,0.00024199,7]
[312702435,1706166638658,-178.830629,0.00024482,2]
[312702437,1706166638667,-1587.46104404,0.00024498,2]
[312702439,1706166638676,-380.0,0.00024658,2]
[312702441,1706166638685,-624.92756785,0.00024748,2]
[312702443,1706166638694,-498.66582765,0.0002496,5]
[312702445,1706166638703,-13226.17446126,0.00024998,2]
[312702447,1706166638712,-937.28901272,0.00024998,2]
[312702449,1706166638721,-170.0,0.00024999,2]
[312702451,1706166638730,-1500.90139842,0.00025,2]
[312702453,1706166638739,-25347.50051164,0.00025,2]
[312702455,1706166638748,-1002.8647388,0.00025,2]
[312702457,1706166638757,-4725.91421399,0.00025,2]
[312702459,1706166638767,-154.92253873,0.00025873,2]
[312702461,1706166638776,-1615.00398261,0.00026,3]
[312702463,1706166638785,-391.0,0.00026619,15]
[312702465,1706166638794,-331.02777896,0.00027,2]
[312702467,1706166638803,-155.359626,0.00028748,2]
[312702469,1706166638812,-577.97246029,0.00028749,2]
[312702471,1706166638821,-500.0,0.00028749,2]
[312702473,1706166638830,-543.09257964,0.00028749,2]
[312702475,1706166638839,-500.0,0.00028749,2]
[312702477,1706166638848,-500.0,0.00028749,2]
[312702479,1706166638857,-500.0,0.00028749,2]
[312702481,1706166638867,-211.38916615,0.00028749,2]
[312702483,1706166638875,-500.0,0.00028749,2]
[312702485,1706166638885,-183.96259586,0.00028749,2]
[312702487,1706166638894,-359.77345468,0.00028749,2]
[312702489,1706166638903,-500.0,0.00028749,2]
[312702491,1706166638912,-466.1249917,0.0002875,3]
[312702493,1706166638921,-50000.0,0.0002875,3]
[312702495,1706166638930,-50000.0,0.0002875,3]
[312702497,1706166638939,-78642.54309416,0.0002875,3]
[312702499,1706166638947,-77340.48736735,0.0002875,3]
[312702501,1706166638956,-53572.95837657,0.0002875,3]
[312702503,1706166638966,-10137.19622571,0.0002875,2]
[312702505,1706166638976,-382.0,0.00029281,15]
[312702507,1706166638985,-2543.41353878,0.0002979,7]
[312702509,1706166638994,-2319.1861855,0.0003,3]
[312702510,1706166639003,-139264.62830083,0.0003,4]
[312702512,1706166639012,-688.78830185,0.0003,4]
[312702514,1706166639022,-154.87609912,0.0003,4]
[312702516,1706166639031,-157.894736,0.00030137,2]
[312702518,1706166639040,-174075.21784269,0.00032,15]
[312702520,1706166639049,-4029.183886,0.00032,2]
[312702522,1706166639059,-4029.183886,0.00032,2]
[312702534,1706166639160,-215.328144,0.00032,2]
[312702536,1706166639170,-500.0,0.00032999,7]
[312702538,1706166639179,-569.17334607,0.00032999,7]
[312702540,1706166639189,-227.0821289,0.00032999,7]
[312702542,1706166639198,-166.85042456,0.00032999,7]
[312702544,1706166639209,-159.67503241,0.00032999,7]
[312702546,1706166639218,-116056.94108308,0.00033,10]
[312702548,1706166639232,-62412.50009958,0.00033,10]
[312702550,1706166639241,-228.50754628,0.00033,2]
[312702552,1706166639250,-179.387158,0.00033,2]
[312702554,1706166639260,-179.387158,0.00033,2]
[312702556,1706166639269,-151.0,0.00033,2]
[312702558,1706166639278,-745.154565,0.00033,2]
[312702560,1706166639288,-745.154565,0.00033,2]
[312702562,1706166639298,-381.827714,0.00033,2]
[312702564,1706166639307,-381.827714,0.00033,2]
[312702566,1706166639316,-4029.183886,0.00033,2]
[312702568,1706166639325,-4029.183886,0.00033,2]
[312702570,1706166639335,-151.0,0.00034665,2]
[312702572,1706166639346,-1511.15976033,0.00035,7]
[312702574,1706166639356,-261.85924239,0.00035,4]
[312702576,1706166639365,-11207.30315368,0.00037,2]
[312702578,1706166639374,-6706.11511501,0.00038,10]
[312702580,1706166639385,-309.66775956,0.00039,4]
[312702582,1706166639395,-151.0,0.00039331,4]
[312702584,1706166639404,-5000.0,0.00039462,7]
[312702586,1706166639415,-5000.0,0.00039462,7]
[312702588,1706166639424,-5000.0,0.00039462,7]
[312702590,1706166639434,-6467.11994249,0.00039558,7]
[312702592,1706166639446,-1293.06170709,0.00039558,7]
[312702594,1706166639456,-150.41546657,0.00039559,2]
[312702596,1706166639465,-563.7666321,0.0003999,4]
[312702602,1706166639514,-2828.00063051,0.0003999,4]
[312702713,1706166640959,-323.30988592,0.00021978,2]
[312702715,1706166640968,-649.63015772,0.0003999,4]
[312702717,1706166640978,-151.01757221,0.00039999,2]
[312702719,1706166640987,-155.28233037,0.0004,4]
[312702721,1706166640996,-387.96532423,0.0004,4]
[312702723,1706166641007,-892.83668918,0.0004,4]
[312702725,1706166641017,-657.40715545,0.00040223,120]
[312702727,1706166641026,-155.82215067,0.00040226,4]
[312702729,1706166641035,-150.0,0.000403,30]
[312702730,1706166641044,-165.0509278,0.00040337,2]
[312702731,1706166641054,-300.0,0.000406,30]
[312702732,1706166641063,-1064.72752597,0.00041,120]
[312702733,1706166641073,-500.0,0.00041095,2]
[312702734,1706166641083,-250.0,0.00041095,7]
[312702735,1706166641092,-172.1412506,0.00041293,30]
[312702736,1706166641101,-157.57723135,0.00041352,30]
[312702737,1706166641110,-156.35433622,0.0004166,30]
[312702738,1706166641119,-76.78872541,0.0004246,5]
[312702739,1706166641131,-12079.78779695,0.0004246,5]
[312702740,1706166641140,-500.0,0.00042465,7]
[312702741,1706166641150,-3954.91463466,0.00042595,2]
[312702742,1706166641159,-300.0,0.00042599,4]
[312702743,1706166641168,-777.0,0.00042907,2]
[312702744,1706166641177,-156.35433622,0.00042932,30]
[312702745,1706166641186,-1000.0,0.00043,43]
[312702746,1706166641196,-157.57723135,0.00043296,30]
[312702747,1706166641206,-200.0,0.000438,4]
[312702748,1706166641215,-508.23256408,0.00043835,7]
[312702749,1706166641225,-1000.0,0.00044,44]
[312702750,1706166641234,-182.5817009,0.00044,2]
[312702751,1706166641246,-252.30064042,0.00044,2]
[312702806,1706166643186,-346.67357638,0.00044,2]
[312702807,1706166643195,-150.89437394,0.0004418,2]
[312702808,1706166643205,-157.57723135,0.00044582,30]
[312702809,1706166643214,-1344.85481833,0.00044593,14]
[312702834,1706166646027,-1920.9137997,0.00044583,3]
[312702860,1706167322896,-154.87609912,0.00027927,2]
[312702861,1706167322932,-154.87609912,0.00027927,4]
[312702862,1706167322965,-679.03304923,0.00027928,2]
[312702863,1706167323000,-850.73963902,0.00027928,2]
[312702864,1706167323034,-23060.47511351,0.00027929,2]
[312702865,1706167343107,-1839.52488649,0.00027928,2]
[312702866,1706167348716,-360.91917073,0.00027927,2]
[312702867,1706167348751,-922.91750857,0.00027928,2]
[312702868,1706167348788,-1478.60571576,0.00027929,2]
[312702869,1706167360942,-360.91917073,0.00027929,2]
[312702870,1706167367997,-470.87385711,0.00028933,2]
[312702871,1706167368031,-2074.94658461,0.00028933,2]
[312702872,1706167368065,-360.91917073,0.00028933,2]
[312702873,1706167368099,-7525.17725655,0.00028934,2]
[312702874,1706167368136,-22440.38933903,0.00028935,3]
[312702875,1706167368172,-8816.68481413,0.00028935,2]
[312702876,1706167467090,-3920.61735066,0.00028933,2]
[312702877,1706167467126,-2762.44239506,0.00028934,2]
[312702878,1706167467162,-360.91917073,0.00028935,2]
[312702879,1706167467196,-279.82176233,0.00028935,2]
[312702880,1706167467230,-6129.67718162,0.00028935,2]
[312702881,1706167467264,-303.61999861,0.00028935,2]
[312703058,1706167838470,-360.91917073,0.00028869,2]
[312703061,1706167838480,-2762.44239506,0.00028869,2]
[312703063,1706167838489,-154.8915759,0.0002887,4]
[312703065,1706167838499,-850.73963902,0.0002887,2]
[312703066,1706167838508,-3920.61735066,0.00028871,2]
[312703068,1706167838517,-151.63703844,0.00028877,2]
[312703069,1706167838527,-303.61999861,0.00028935,2]
[312703071,1706167838536,-6129.67718162,0.00028935,2]
[312703072,1706167838545,-279.82176233,0.00028935,2]
[312703073,1706167838555,-21382.19199946,0.00029021,2]
[312703074,1706167838564,-16184.48567546,0.00029071,3]
[312703076,1706167838573,-179.6207181,0.000299,4]
[312703077,1706167838583,-5121.68,0.0002999,3]
[312703079,1706167838592,-154.87609912,0.0003,4]
[312703093,1706167838706,-688.78830185,0.0003,4]
[312703095,1706167838717,-139264.62830083,0.0003,4]
[312703097,1706167838727,-200.0,0.00031819,15]
[312703099,1706167838737,-261.85924239,0.00035,4]
[312703101,1706167838747,-228.50754628,0.00035673,2]
[312703103,1706167838756,-165.471319,0.00039012,2]
[312703105,1706167838764,-5000.0,0.00039524,7]
[312703107,1706167838774,-5000.0,0.00039524,7]
[312703109,1706167838785,-5000.0,0.00039536,7]
[312703111,1706167838794,-5000.0,0.00039561,7]
[312703113,1706167838803,-657.40715545,0.00040131,120]
[312703115,1706167838813,-167.067646,0.00040302,2]
[312703117,1706167838823,-179.6207181,0.000404,9]
[312703119,1706167838832,-500.0,0.00041095,2]
[312703121,1706167838842,-157.57723135,0.00041435,30]
[312703123,1706167838851,-156.35433623,0.00041825,30]
[312703124,1706167838861,-157.57723135,0.00041922,30]
[312703125,1706167838871,-12178.23282011,0.00042353,4]
[312703126,1706167838880,-14015.87085813,0.00042354,5]
[312703127,1706167838890,-498.66582765,0.00042361,5]
[312703128,1706167838899,-290.53836744,0.00042361,4]
[312703129,1706167838908,-157.57723135,0.00042435,30]
[312703130,1706167838918,-777.0,0.000428,2]
[312703131,1706167838928,-310.23837055,0.00042976,4]
[312703132,1706167838937,-543.97173256,0.00042976,2]
[312703133,1706167838946,-2385.68812968,0.00042976,4]
[312703134,1706167838955,-606.00416843,0.00042977,4]
[312703135,1706167838964,-50000.0,0.00042978,15]
[312703136,1706167838973,-440.0,0.00043,90]
[312703137,1706167838985,-440.0,0.00043014,90]
[312703138,1706167838994,-156.35433623,0.00043315,30]
[312703139,1706167839004,-200.0,0.000438,4]
[312703140,1706167839013,-500.0,0.00043998,60]
[312703141,1706167839022,-206.64149497,0.00043998,60]
[312703142,1706167839032,-500.0,0.00043998,60]
[312703143,1706167839041,-500.0,0.00043998,60]
[312703144,1706167839050,-500.0,0.00043998,60]
[312703145,1706167839060,-500.0,0.00043998,60]
[312703146,1706167839069,-500.0,0.00043998,60]
[312703147,1706167839078,-500.0,0.00043998,60]
[312703148,1706167839087,-500.0,0.00043998,60]
[312703149,1706167839096,-500.0,0.00043998,60]
[312703150,1706167839105,-500.0,0.00043998,60]
[312703151,1706167839114,-500.0,0.00043998,60]
[312703152,1706167839124,-500.0,0.00043998,60]
[312703153,1706167839133,-500.0,0.00043998,60]
[312703154,1706167839142,-500.0,0.00043998,60]
[312703155,1706167839151,-500.0,0.00043998,60]
[312703156,1706167839160,-500.0,0.00043998,60]
[312703157,1706167839169,-500.0,0.00043998,60]
[312703158,1706167839180,-500.0,0.00043998,60]
[312703159,1706167839191,-577.833987,0.00043998,60]
[312703160,1706167839200,-500.0,0.00043998,60]
[312703161,1706167839211,-500.0,0.00043998,60]
[312703162,1706167839219,-500.0,0.00043998,60]
[312703163,1706167839228,-500.0,0.00043998,60]
[312703164,1706167839237,-500.0,0.00043998,60]
[312703165,1706167839245,-500.0,0.00043998,60]
[312703166,1706167839254,-500.0,0.00043998,60]
[312703167,1706167839263,-500.0,0.00043998,60]
[312703168,1706167839273,-500.0,0.00043998,60]
[312703169,1706167839282,-500.0,0.00043998,60]
[312703170,1706167839290,-500.0,0.00043998,60]
[312703171,1706167839299,-500.0,0.00043998,60]
[312703172,1706167839307,-500.0,0.00043998,60]
[312703173,1706167839316,-500.0,0.00043998,60]
[312703174,1706167839325,-500.0,0.00043998,60]
[312703175,1706167839334,-500.0,0.00043998,60]
[312703176,1706167839344,-500.0,0.00043998,60]
[312703177,1706167839353,-500.0,0.00043998,60]
[312703178,1706167839362,-500.0,0.00043998,60]
[312703179,1706167839372,-500.0,0.00043998,60]
[312703180,1706167839381,-500.0,0.00043998,60]
[312703181,1706167839390,-500.0,0.00043998,60]
[312703182,1706167839399,-500.0,0.00043998,60]
[312703183,1706167839408,-500.0,0.00043998,60]
[312703184,1706167839418,-500.0,0.00043998,60]
[312703185,1706167839430,-500.0,0.00043998,60]
[312703186,1706167839440,-500.0,0.00043998,60]
[312703187,1706167839449,-500.0,0.00043998,60]
[312703188,1706167839458,-500.0,0.00043998,60]
[312703189,1706167839467,-500.0,0.00043998,60]
[312703190,1706167839476,-500.0,0.00043998,60]
[312703191,1706167839485,-500.0,0.00043998,60]
[312703192,1706167839494,-500.0,0.00043998,60]
[312703193,1706167839503,-233.06249585,0.00043999,3]
[312703194,1706167839512,-115299.6634825,0.00043999,14]
[312703195,1706167839553,-14223.33754253,0.00043999,14]
[312703545,1706167846198,-7996.65,0.0002999,3]
[312703547,1706167846208,-279723.09325298,0.00043999,14]
[312703651,1706169032325,-452.97596092,0.00026611,2]
[312703653,1706169032334,-154.86062544,0.00026612,2]
[312703655,1706169032344,-99.08706564,0.00026613,2]
[312703697,1706169038406,-850.73963902,0.00026611,2]
[312703699,1706169038415,-273.36097722,0.00026613,2]
[312703701,1706169038428,-8392.89098918,0.00026613,2]
[312703703,1706169038437,-360.91917073,0.00026613,2]
[312703705,1706169038446,-154.86062544,0.00026614,4]
[312703707,1706169038455,-1198.61763963,0.00026614,2]
[312703709,1706169038464,-154.86062544,0.00026615,2]
[312703711,1706169038473,-323.30988592,0.00026615,2]
[312703713,1706169038482,-3920.61735066,0.00026615,2]
[312703724,1706169038577,-2762.44239506,0.00026616,2]
[312703726,1706169038587,-6726.79657541,0.0002662,2]
[312703728,1706169038598,-1311.49933201,0.0002662,2]
[312703730,1706169038609,-1421.50497156,0.0002662,2]
[312703733,1706169038620,-5973.50964001,0.0002662,2]
[312703735,1706169038632,-9466.68948101,0.0002662,2]
[312703737,1706169038641,-167.592425,0.00028036,2]
[312703739,1706169038650,-2887.78736362,0.00029545,3]
[312703741,1706169038659,-7517.49,0.00029591,3]
[312703743,1706169038668,-40750.73801506,0.00029601,3]
[312703745,1706169038676,-13180.63576793,0.00029687,4]
[312703747,1706169038685,-16470.87034731,0.00029999,2]
[312703749,1706169038694,-688.78830185,0.0003,4]
[312703751,1706169038704,-139264.62830083,0.0003,4]
[312703753,1706169038713,-154.87609912,0.0003,4]
[312703755,1706169038722,-157.894736,0.00030137,2]
[312703757,1706169038730,-200.0,0.00030375,15]
[312703759,1706169038740,-228.50754628,0.00033,2]
[312703761,1706169038749,-261.85924239,0.00035,4]
[312703763,1706169038758,-657.40715545,0.00035744,7]
[312703765,1706169038767,-498.66582765,0.00039453,5]
[312703767,1706169038776,-290.53836744,0.00039453,4]
[312703768,1706169038786,-206.64149497,0.00039717,15]
[312703770,1706169038795,-500.0,0.00039717,15]
[312703773,1706169038806,-500.0,0.00039717,15]
[312703775,1706169038816,-500.0,0.00039717,15]
[312703777,1706169038825,-500.0,0.00039717,15]
[312703779,1706169038835,-500.0,0.00039717,15]
[312703780,1706169038844,-500.0,0.00039717,15]
[312703783,1706169038854,-500.0,0.00039717,15]
[312703784,1706169038863,-500.0,0.00039717,15]
[312703787,1706169038873,-500.0,0.00039717,15]
[312703789,1706169038882,-500.0,0.00039717,15]
[312703790,1706169038891,-500.0,0.00039717,15]
[312703792,1706169038900,-500.0,0.00039717,15]
[312703794,1706169038909,-500.0,0.00039717,15]
[312703797,1706169038919,-500.0,0.00039717,15]
[312703798,1706169038928,-500.0,0.00039717,15]
[312703801,1706169038937,-500.0,0.00039717,15]
[312703802,1706169038946,-500.0,0.00039717,15]
[312703804,1706169038956,-500.0,0.00039717,15]
[312703806,1706169038965,-500.0,0.00039717,15]
[312703809,1706169038974,-500.0,0.00039717,15]
[312703811,1706169038983,-500.0,0.00039717,15]
[312703813,1706169038992,-500.0,0.00039717,15]
[312703815,1706169039001,-500.0,0.00039717,15]
[312703816,1706169039009,-500.0,0.00039717,15]
[312703818,1706169039020,-500.0,0.00039717,15]
[312703820,1706169039029,-500.0,0.00039717,15]
[312703821,1706169039043,-500.0,0.00039717,15]
[312703823,1706169039052,-500.0,0.00039717,15]
[312703825,1706169039061,-500.0,0.00039717,15]
[312703827,1706169039070,-500.0,0.00039717,15]
[312703829,1706169039079,-500.0,0.00039717,15]
[312703831,1706169039089,-500.0,0.00039717,15]
[312703833,1706169039100,-500.0,0.00039717,15]
[312703834,1706169039109,-500.0,0.00039717,15]
[312703836,1706169039118,-500.0,0.00039717,15]
[312703837,1706169039129,-500.0,0.00039717,15]
[312703839,1706169039138,-500.0,0.00039717,15]
[312703840,1706169039148,-500.0,0.00039717,15]
[312703841,1706169039157,-500.0,0.00039717,15]
[312703842,1706169039167,-500.0,0.00039717,15]
[312703843,1706169039179,-500.0,0.00039717,15]
[312703844,1706169039189,-500.0,0.00039717,15]
[312703845,1706169039198,-500.0,0.00039717,15]
[312703846,1706169039207,-500.0,0.00039717,15]
[312703847,1706169039217,-500.0,0.00039717,15]
[312703848,1706169039226,-500.0,0.00039717,15]
[312703849,1706169039235,-500.0,0.00039717,15]
[312703850,1706169039245,-500.0,0.00039717,15]
[312703851,1706169039254,-500.0,0.00039717,15]
[312703852,1706169039263,-500.0,0.00039717,15]
[312703853,1706169039272,-577.833987,0.00039717,15]
[312703854,1706169039282,-500.0,0.00039717,15]
[312703855,1706169039291,-500.0,0.00039717,15]
[312703856,1706169039300,-600.0,0.00039717,15]
[312703857,1706169039310,-500.0,0.00039717,15]
[312703858,1706169039319,-500.0,0.00039717,15]
[312703859,1706169039328,-500.0,0.00039717,15]
[312703860,1706169039337,-500.0,0.00039717,15]
[312703861,1706169039347,-500.0,0.00039717,15]
[312703862,1706169039356,-5000.0,0.00039718,7]
[312703863,1706169039365,-50000.0,0.00039718,7]
[312703864,1706169039375,-5000.0,0.00039746,7]
[312703865,1706169039384,-50000.0,0.00039746,7]
[312703866,1706169039393,-5000.0,0.00039765,7]
[312703867,1706169039401,-2000.0,0.0004,2]
[312703868,1706169039411,-10000.0,0.0004,14]
[312703869,1706169039420,-181.243588,0.00040302,2]
[312703870,1706169039430,-209.800974,0.00040302,2]
[312703871,1706169039439,-167.067646,0.00040302,2]
[312703872,1706169039449,-400.01221217,0.00041,90]
[312703873,1706169039459,-500.0,0.00041095,2]
[312703874,1706169039469,-156.35433623,0.00041455,30]
[312703875,1706169039478,-2385.68812968,0.00041529,4]
[312703876,1706169039487,-543.97173256,0.00041529,2]
[312703877,1706169039497,-606.00416843,0.0004153,4]
[312703878,1706169039506,-14015.87085813,0.00041799,5]
[312703879,1706169039516,-474.68345225,0.00042,7]
[312703880,1706169039525,-30225.181,0.00042,7]